fUSD/lending_fUSD_20240210
["ID","MTS","AMOUNT","RATE_DAILY","PERIOD"]
[313658957,1707550240858,-500.0,0.00022999,2]
[313658958,1707550240867,-307.11915053,0.00022999,2]
[313658959,1707550240875,-500.0,0.00022999,2]
[313658960,1707550240884,-544.64,0.00022999,2]
[313658961,1707550240893,-974.06,0.00022999,2]
[313658962,1707550240903,-500.0,0.00022999,2]
[313658963,1707550240912,-500.0,0.00022999,2]
[313658964,1707550240920,-500.0,0.00022999,2]
[313658965,1707550240929,-627.49,0.00022999,2]
[313658966,1707550240938,-500.0,0.00022999,2]
[313658967,1707550240947,-500.0,0.00022999,2]
[313658968,1707550240956,-500.0,0.00022999,2]
[313658969,1707550240966,-500.0,0.00022999,2]
[313658970,1707550240976,-500.0,0.00022999,2]
[313658971,1707550240987,-500.0,0.00022999,2]
[313658972,1707550240999,-500.0,0.00022999,2]
[313658973,1707550241009,-500.0,0.00022999,2]
[313658974,1707550241018,-626.9,0.00022999,2]
[313658975,1707550241028,-500.0,0.00022999,2]
[313658976,1707550241038,-588.00693756,0.00022999,2]
[313658977,1707550241049,-500.0,0.00022999,2]
[313658978,1707550241059,-500.0,0.00022999,2]
[313658979,1707550241068,-3096.17,0.00022999,2]
[313658980,1707550241078,-500.0,0.00022999,2]
[313658981,1707550241088,-500.0,0.00022999,2]
[313658982,1707550241099,-500.0,0.00022999,2]
[313658983,1707550241108,-500.0,0.00022999,2]
[313658984,1707550241117,-500.0,0.00022999,2]
[313658985,1707550241126,-500.0,0.00022999,2]
[313658986,1707550241136,-500.0,0.00022999,2]
[313658987,1707550241144,-500.0,0.00022999,2]
[313658988,1707550241156,-500.0,0.00022999,2]
[313658989,1707550241165,-1000.0,0.00022999,2]
[313658990,1707550241174,-500.0,0.00022999,2]
[313658991,1707550241183,-508.81460422,0.00022999,2]
[313658992,1707550241192,-500.0,0.00022999,2]
[313658993,1707550241201,-500.0,0.00022999,2]
[313658994,1707550241210,-500.0,0.00022999,2]
[313658995,1707550241218,-500.0,0.00022999,2]
[313658996,1707550241228,-500.0,0.00022999,2]
[313658997,1707550241237,-500.0,0.00022999,2]
[313658998,1707550241246,-500.0,0.00022999,2]
[313658999,1707550241255,-522.00047501,0.00022999,2]
[313659000,1707550241265,-500.0,0.00022999,2]
[313659001,1707550241274,-500.0,0.00022999,2]
[313659002,1707550241283,-500.0,0.00022999,2]
[313659003,1707550241292,-287.66085412,0.00022999,2]
[313659004,1707550241301,-500.0,0.00022999,2]
[313659005,1707550241311,-500.0,0.00022999,2]
[313659006,1707550241320,-514.16356677,0.00022999,2]
[313659007,1707550241329,-266.04408755,0.00022999,2]
[313659008,1707550241338,-500.0,0.00022999,2]
[313659009,1707550241348,-500.0,0.00022999,2]
[313659010,1707550241358,-500.0,0.00022999,2]
[313659011,1707550241367,-500.0,0.00022999,2]
[313659012,1707550241377,-500.0,0.00022999,2]
[313659013,1707550241387,-500.0,0.00022999,2]
[313659014,1707550241396,-507.24461112,0.00022999,2]
[313659015,1707550241406,-500.0,0.00022999,2]
[313659016,1707550241415,-500.0,0.00022999,2]
[313659017,1707550241424,-500.0,0.00022999,2]
[313659018,1707550241433,-318.99845171,0.00022999,2]
[313659019,1707550241442,-500.0,0.00022999,2]
[313659020,1707550241451,-519.10823224,0.00022999,2]
[313659021,1707550241460,-520.33,0.00022999,2]
[313659022,1707550241470,-500.0,0.00022999,2]
[313659023,1707550241480,-500.0,0.00022999,2]
[313659024,1707550241496,-500.0,0.00022999,2]
[313659025,1707550241511,-500.0,0.00022999,2]
[313659026,1707550241521,-500.0,0.00022999,2]
[313659027,1707550241530,-500.0,0.00022999,2]
[313659028,1707550241540,-500.0,0.00022999,2]
[313659029,1707550241550,-500.0,0.00022999,2]
[313659030,1707550241558,-500.0,0.00022999,2]
[313659031,1707550241568,-500.0,0.00022999,2]
[313659032,1707550241577,-500.0,0.00022999,2]
[313659033,1707550241587,-500.0,0.00022999,2]
[313659034,1707550241596,-500.0,0.00022999,2]
[313659035,1707550241606,-500.0,0.00022999,2]
[313659036,1707550241615,-515.13537514,0.00022999,2]
[313659037,1707550241625,-500.0,0.00022999,2]
[313659038,1707550241634,-500.0,0.00022999,2]
[313659039,1707550241643,-500.0,0.00022999,2]
[313659040,1707550241653,-500.0,0.00022999,2]
[313659041,1707550241663,-500.0,0.00022999,2]
[313659042,1707550241673,-500.0,0.00022999,2]
[313659043,1707550241682,-501.19100709,0.00022999,2]
[313659044,1707550241692,-889.97,0.00022999,2]
[313659045,1707550241701,-500.0,0.00022999,2]
[313659046,1707550241710,-512.06135629,0.00022999,2]
[313659047,1707550241720,-416.05813095,0.00022999,2]
[313659048,1707550241729,-500.0,0.00022999,2]
[313659049,1707550241739,-993.79,0.00022999,2]
[313659050,1707550241748,-500.0,0.00022999,2]
[313659051,1707550241757,-829.76,0.00022999,2]
[313659052,1707550241766,-500.0,0.00022999,2]
[313659053,1707550241776,-500.0,0.00022999,2]
[313659054,1707550241785,-500.0,0.00022999,2]
[313659055,1707550241794,-500.0,0.00022999,2]
[313659056,1707550241803,-500.0,0.00022999,2]
[313659057,1707550241812,-500.0,0.00022999,2]
[313659058,1707550241822,-500.0,0.00022999,2]
[313659059,1707550241830,-611.14,0.00022999,2]
[313659060,1707550241840,-648.45,0.00022999,2]
[313659061,1707550241849,-500.0,0.00022999,2]
[313659062,1707550241858,-500.0,0.00022999,2]
[313659063,1707550241867,-500.0,0.00022999,2]
[313659064,1707550241877,-500.0,0.00022999,2]
[313659065,1707550241886,-500.0,0.00022999,2]
[313659066,1707550241895,-378.45746639,0.00022999,2]
[313659067,1707550241905,-500.0,0.00022999,2]
[313659068,1707550241914,-500.0,0.00022999,2]
[313659069,1707550241926,-515.01777818,0.00022999,2]
[313659070,1707550241936,-500.0,0.00022999,2]
[313659071,1707550241945,-510.39172011,0.00022999,2]
[313659072,1707550241955,-515.72025532,0.00022999,2]
[313659073,1707550241964,-500.0,0.00022999,2]
[313659074,1707550241974,-558.57790914,0.00022999,2]
[313659075,1707550241984,-500.0,0.00022999,2]
[313659076,1707550241993,-500.0,0.00022999,2]
[313659077,1707550242002,-508.3979808,0.00022999,2]
[313659078,1707550242012,-500.0,0.00022999,2]
[313659079,1707550242021,-500.0,0.00022999,2]
[313659080,1707550242031,-500.0,0.00022999,2]
[313659081,1707550242040,-500.0,0.00022999,2]
[313659082,1707550242050,-679.62,0.00022999,2]
[313659083,1707550242061,-500.0,0.00022999,2]
[313659084,1707550242070,-500.0,0.00022999,2]
[313659085,1707550242079,-500.0,0.00022999,2]
[313659086,1707550242089,-500.0,0.00022999,2]
[313659087,1707550242100,-1050.03,0.00022999,2]
[313659088,1707550242111,-500.0,0.00022999,2]
[313659089,1707550242120,-516.87783409,0.00022999,2]
[313659090,1707550242130,-500.0,0.00022999,2]
[313659091,1707550242139,-500.0,0.00022999,2]
[313659092,1707550242148,-500.0,0.00022999,2]
[313659093,1707550242158,-500.0,0.00022999,2]
[313659094,1707550242168,-506.54982654,0.00022999,2]
[313659095,1707550242178,-500.0,0.00022999,2]
[313659096,1707550242187,-500.0,0.00022999,2]
[313659097,1707550242202,-1001.5277416,0.00022999,5]
[313659098,1707550242214,-500.0,0.00022999,2]
[313659099,1707550242224,-500.0,0.00022999,2]
[313659100,1707550242234,-500.0,0.00022999,2]
[313659101,1707550242243,-500.0,0.00022999,2]
[313659102,1707550242253,-500.0,0.00022999,2]
[313659103,1707550242262,-500.0,0.00022999,2]
[313659104,1707550242546,-500.0,0.00022999,2]
[313659105,1707550242556,-602.26699594,0.00022999,2]
[313659106,1707550242565,-500.0,0.00022999,2]
[313659107,1707550242574,-500.0,0.00022999,2]
[313659108,1707550242584,-724.43,0.00022999,2]
[313659109,1707550242593,-500.0,0.00022999,2]
[313659110,1707550242602,-500.0,0.00022999,2]
[313659111,1707550242612,-500.0,0.00022999,2]
[313659112,1707550242621,-500.0,0.00022999,2]
[313659113,1707550242630,-727.19,0.00022999,2]
[313659114,1707550242639,-500.0,0.00022999,2]
[313659115,1707550242648,-500.0,0.00022999,2]
[313659116,1707550242658,-500.0,0.00022999,2]
[313659117,1707550242667,-500.0,0.00022999,2]
[313659118,1707550242676,-500.0,0.00022999,2]
[313659119,1707550242685,-538.68853796,0.00022999,2]
[313659120,1707550242694,-500.0,0.00022999,2]
[313659121,1707550242704,-500.0,0.00022999,2]
[313659122,1707550242713,-500.0,0.00022999,2]
[313659123,1707550242722,-500.0,0.00022999,2]
[313659124,1707550242732,-524.21346104,0.00022999,2]
[313659125,1707550242741,-500.0,0.00022999,2]
[313659126,1707550242751,-861.38,0.00022999,2]
[313659127,1707550242760,-1177.9,0.00022999,2]
[313659128,1707550242769,-500.0,0.00022999,2]
[313659129,1707550242779,-1067.09,0.00022999,2]
[313659130,1707550242788,-500.0,0.00022999,2]
[313659131,1707550242798,-500.0,0.00022999,2]
[313659132,1707550242806,-500.0,0.00022999,2]
[313659133,1707550242815,-500.0,0.00022999,2]
[313659134,1707550242825,-1156.27,0.00022999,2]
[313659135,1707550242834,-500.0,0.00022999,2]
[313659136,1707550242844,-1575.54,0.00022999,2]
[313659137,1707550242853,-500.0,0.00022999,2]
[313659138,1707550242863,-2269.78,0.00022999,2]
[313659139,1707550242872,-500.0,0.00022999,2]
[313659140,1707550242881,-500.0,0.00022999,2]
[313659141,1707550242891,-500.0,0.00022999,2]
[313659142,1707550242900,-500.0,0.00022999,2]
[313659143,1707550242909,-500.0,0.00022999,2]
[313659144,1707550242919,-500.0,0.00022999,2]
[313659145,1707550242929,-500.0,0.00022999,2]
[313659146,1707550242939,-492.97429153,0.00022999,2]
[313659147,1707550242949,-500.0,0.00022999,2]
[313659148,1707550242959,-500.0,0.00022999,2]
[313659149,1707550242968,-1000.0,0.00022999,7]
[313659150,1707550242978,-500.0,0.00022999,2]
[313659151,1707550242986,-576.66,0.00022999,2]
[313659152,1707550242996,-675.42,0.00022999,2]
[313659153,1707550243005,-500.0,0.00022999,2]
[313659154,1707550243015,-22082.31,0.00022999,2]
[313659155,1707550243025,-500.0,0.00022999,2]
[313659156,1707550243035,-257.70949532,0.00022999,2]
[313659157,1707550243044,-500.0,0.00022999,2]
[313659158,1707550243054,-515.41486438,0.00022999,2]
[313659159,1707550243063,-661.15,0.00022999,2]
[313659160,1707550243073,-500.0,0.00022999,2]
[313659161,1707550243082,-3836.38,0.00022999,2]
[313659162,1707550243092,-500.0,0.00022999,2]
[313659163,1707550243105,-500.0,0.00022999,2]
[313659164,1707550243115,-500.0,0.00022999,2]
[313659165,1707550243125,-1753.23,0.00022999,2]
[313659166,1707550243134,-646.96,0.00022999,2]
[313659167,1707550243144,-500.0,0.00022999,2]
[313659168,1707550243154,-500.0,0.00022999,2]
[313659169,1707550243163,-2810.38,0.00022999,2]
[313659170,1707550243172,-500.0,0.00022999,2]
[313659171,1707550243181,-500.0,0.00022999,2]
[313659172,1707550243191,-1134.33,0.00022999,2]
[313659173,1707550243200,-500.0,0.00022999,2]
[313659174,1707550243210,-868.51,0.00022999,2]
[313659175,1707550243219,-3291.37,0.00022999,2]
[313659176,1707550243229,-3793.59,0.00022999,2]
[313659178,1707550243238,-500.0,0.00022999,2]
[313659180,1707550243247,-2887.49,0.00022999,2]
[313659182,1707550243257,-500.0,0.00022999,2]
[313659183,1707550243266,-2696.64,0.00022999,2]
[313659184,1707550243275,-500.0,0.00022999,2]
[313659185,1707550243285,-3494.63,0.00022999,2]
[313659186,1707550243294,-1329.31,0.00022999,2]
[313659187,1707550243303,-3924.71,0.00022999,2]
[313659188,1707550243313,-15986.28,0.00022999,2]
[313659189,1707550243322,-500.0,0.00022999,2]
[313659190,1707550243331,-2790.09,0.00022999,2]
[313659191,1707550243341,-500.0,0.00022999,2]
[313659192,1707550243350,-500.0,0.00022999,2]
[313659193,1707550243360,-580.63,0.00022999,2]
[313659194,1707550243369,-500.0,0.00022999,2]
[313659195,1707550243378,-1284.22,0.00022999,2]
[313659196,1707550243388,-500.0,0.00022999,2]
[313659197,1707550243397,-500.0,0.00022999,2]
[313659198,1707550243407,-1880.44,0.00022999,2]
[313659199,1707550243416,-4255.52,0.00022999,2]
[313659200,1707550243425,-500.0,0.00022999,2]
[313659201,1707550243435,-500.0,0.00022999,2]
[313659202,1707550243444,-500.0,0.00022999,2]
[313659203,1707550243453,-1208.77,0.00022999,2]
[313659204,1707550243463,-843.31,0.00022999,2]
[313659205,1707550243472,-2129.9,0.00022999,2]
[313659206,1707550243482,-14473.93,0.00022999,2]
[313659207,1707550243491,-500.0,0.00022999,2]
[313659208,1707550243501,-787.06,0.00022999,2]
[313659209,1707550243510,-646.6,0.00022999,2]
[313659210,1707550243520,-4619.9,0.00022999,2]
[313659211,1707550243529,-500.0,0.00022999,2]
[313659212,1707550243538,-2647.77,0.00022999,2]
[313659213,1707550243547,-500.0,0.00022999,2]
[313659214,1707550243556,-500.0,0.00022999,2]
[313659215,1707550243566,-771.9,0.00022999,2]
[313659216,1707550243575,-500.0,0.00022999,2]
[313659217,1707550243584,-939.8,0.00022999,2]
[313659218,1707550243593,-500.0,0.00022999,2]
[313659219,1707550243602,-500.0,0.00022999,2]
[313659220,1707550243611,-264.59526182,0.00022999,2]
[313659221,1707550243620,-500.0,0.00022999,2]
[313659222,1707550243629,-2309.86,0.00022999,2]
[313659223,1707550243638,-500.0,0.00022999,2]
[313659224,1707550243647,-503.63,0.00022999,2]
[313659225,1707550243657,-500.0,0.00022999,2]
[313659226,1707550243667,-3308.8,0.00022999,2]
[313659227,1707550243675,-619.96,0.00022999,2]
[313659228,1707550243685,-534.85,0.00022999,2]
[313659229,1707550243694,-500.0,0.00022999,2]
[313659230,1707550243703,-500.0,0.00022999,2]
[313659231,1707550243712,-500.0,0.00022999,2]
[313659232,1707550243722,-1722.53,0.00022999,2]
[313659233,1707550243732,-500.0,0.00022999,2]
[313659234,1707550243741,-500.0,0.00022999,2]
[313659235,1707550243750,-500.0,0.00022999,2]
[313659236,1707550243760,-500.0,0.00022999,2]
[313659237,1707550243771,-500.0,0.00022999,2]
[313659238,1707550243780,-500.0,0.00022999,2]
[313659239,1707550243789,-904.9,0.00022999,2]
[313659240,1707550243798,-15067.19,0.00022999,2]
[313659241,1707550243807,-500.0,0.00022999,2]
[313659242,1707550243817,-500.0,0.00022999,2]
[313659243,1707550243826,-599.72343174,0.00022999,2]
[313659244,1707550243836,-3003.9676216,0.00023,2]
[313659245,1707550243845,-161.86761481,0.00023028,2]
[313659246,1707550243855,-161.86761481,0.00023166,2]
[313659247,1707550243865,-2015.18803535,0.00023172,2]
[313659248,1707550243874,-500.0,0.0002327,2]
[313659249,1707550243884,-500.0,0.0002327,2]
[313659250,1707550243893,-500.0,0.0002327,2]
[313659251,1707550243902,-876.0,0.0002327,2]
[313659252,1707550243912,-739.06,0.0002327,2]
[313659253,1707550243921,-2841.02,0.0002327,2]
[313659254,1707550243930,-500.0,0.0002327,2]
[313659255,1707550243939,-500.0,0.0002327,2]
[313659256,1707550243949,-1236.7,0.0002327,2]
[313659257,1707550243958,-780.84,0.0002327,2]
[313659258,1707550243968,-1564.86,0.0002327,2]
[313659259,1707550243977,-841.34,0.0002327,2]
[313659260,1707550243986,-500.0,0.0002327,2]
[313659261,1707550243995,-3213.78,0.0002327,2]
[313659262,1707550244005,-3065.8,0.0002327,2]
[313659263,1707550244015,-964.5,0.0002327,2]
[313659264,1707550244024,-500.0,0.0002327,2]
[313659265,1707550244036,-1033.2,0.0002327,2]
[313659266,1707550244045,-10773.23,0.0002327,2]
[313659267,1707550244056,-528.14,0.0002327,2]
[313659268,1707550244068,-500.0,0.0002327,2]
[313659269,1707550244077,-4796.06,0.0002327,2]
[313659270,1707550244086,-723.87,0.0002327,2]
[313659271,1707550244095,-858.57,0.0002327,2]
[313659272,1707550244105,-1178.95,0.0002327,2]
[313659273,1707550244114,-770.08,0.0002327,2]
[313659274,1707550244123,-750.69,0.0002327,2]
[313659275,1707550244133,-627.12357597,0.0002327,2]
[313659276,1707550244142,-500.0,0.0002327,2]
[313659277,1707550244153,-500.0,0.0002327,2]
[313659278,1707550244163,-500.0,0.0002327,2]
[313659279,1707550244172,-500.0,0.0002327,2]
[313659280,1707550244181,-500.0,0.0002327,2]
[313659281,1707550244190,-500.0,0.0002327,2]
[313659282,1707550244200,-500.0,0.0002327,2]
[313659283,1707550244209,-500.0,0.0002327,2]
[313659284,1707550244218,-422.18085118,0.0002327,2]
[313659285,1707550244228,-500.0,0.0002327,2]
[313659286,1707550244237,-439.66561565,0.0002327,2]
[313659287,1707550244248,-151.021,0.00023271,2]
[313659288,1707550244258,-151.021,0.00023271,2]
[313659289,1707550244268,-151.021,0.00023271,2]
[313659290,1707550244279,-151.021,0.00023271,2]
[313659291,1707550244289,-151.021,0.00023271,2]
[313659292,1707550244300,-151.021,0.00023271,2]
[313659293,1707550244311,-532.38,0.00023271,2]
[313659294,1707550244321,-604.05,0.00023271,2]
[313659295,1707550244331,-865.44,0.00023271,2]
[313659296,1707550244341,-500.0,0.00023271,2]
[313659297,1707550244350,-4005.94,0.00023271,2]
[313659298,1707550244360,-4233.42,0.00023271,2]
[313659299,1707550244370,-28207.96,0.00023271,2]
[313659300,1707550244380,-952.98,0.00023271,2]
[313659301,1707550244389,-9584.11,0.00023271,2]
[313659302,1707550244399,-4357.35,0.00023271,2]
[313659303,1707550244408,-500.0,0.00023271,2]
[313659304,1707550244418,-500.0,0.00023271,2]
[313659305,1707550244427,-3811.37,0.00023271,2]
[313659306,1707550244437,-500.0,0.00023271,2]
[313659307,1707550244446,-1997.3,0.00023271,2]
[313659308,1707550244456,-987.08,0.00023271,2]
[313659309,1707550244465,-524.03,0.00023271,2]
[313659310,1707550244475,-15753.33,0.00023271,2]
[313659311,1707550244484,-623.89,0.00023271,2]
[313659312,1707550244494,-1474.04,0.00023271,2]
[313659313,1707550244503,-500.0,0.00023271,2]
[313659314,1707550244513,-500.0,0.00023271,2]
[313659315,1707550244522,-697.25,0.00023271,2]
[313659316,1707550244531,-5901.87,0.00023271,2]
[313659317,1707550244540,-820.78,0.00023271,2]
[313659318,1707550244550,-1020.72,0.00023271,2]
[313659319,1707550244560,-983.08,0.00023271,2]
[313659320,1707550244570,-500.0,0.00023272,2]
[313659321,1707550244579,-500.0,0.00023272,2]
[313659322,1707550244588,-651.29,0.00023272,2]
[313659323,1707550244597,-500.0,0.00023272,2]
[313659324,1707550244606,-500.0,0.00023272,2]
[313659325,1707550244615,-500.0,0.00023272,2]
[313659326,1707550244624,-500.0,0.00023272,2]
[313659327,1707550244633,-500.0,0.00023272,2]
[313659328,1707550244642,-500.0,0.00023272,2]
[313659329,1707550244651,-500.0,0.00023272,2]
[313659330,1707550244660,-500.0,0.00023272,2]
[313659331,1707550244670,-500.0,0.00023272,2]
[313659332,1707550244679,-500.0,0.00023272,2]
[313659333,1707550244688,-500.0,0.00023272,2]
[313659334,1707550244698,-243.94454967,0.00023272,2]
[313659335,1707550244707,-500.0,0.00023272,2]
[313659337,1707550244717,-698.85,0.00023272,7]
[313659339,1707550244726,-500.0,0.00023272,2]
[313659340,1707550244735,-500.0,0.00023272,2]
[313659341,1707550244744,-500.0,0.00023272,2]
[313659342,1707550244811,-500.0,0.00023272,2]
[313659343,1707550244820,-500.0,0.00023272,2]
[313659344,1707550244829,-653.32,0.00023272,2]
[313659345,1707550244838,-500.0,0.00023272,2]
[313659346,1707550244847,-500.0,0.00023272,2]
[313659347,1707550244856,-500.0,0.00023272,2]
[313659348,1707550244865,-596.59,0.00023272,2]
[313659349,1707550244874,-500.0,0.00023272,2]
[313659350,1707550244883,-500.0,0.00023272,2]
[313659351,1707550244892,-500.0,0.00023272,2]
[313659352,1707550244901,-500.0,0.00023272,2]
[313659353,1707550244910,-500.0,0.00023272,2]
[313659355,1707550244919,-500.0,0.00023272,2]
[313659357,1707550244927,-500.0,0.00023272,2]
[313659358,1707550244935,-500.0,0.00023272,2]
[313659359,1707550244945,-500.0,0.00023272,2]
[313659360,1707550244954,-500.0,0.00023272,2]
[313659361,1707550244963,-500.0,0.00023272,2]
[313659362,1707550244972,-501.59,0.00023272,2]
[313659363,1707550244981,-500.0,0.00023272,2]
[313659364,1707550244990,-500.0,0.00023272,2]
[313659365,1707550244999,-500.0,0.00023272,2]
[313659366,1707550245008,-545.47201291,0.00023272,2]
[313659367,1707550245017,-749.98,0.00023272,2]
[313659368,1707550245026,-500.0,0.00023272,2]
[313659369,1707550245035,-500.0,0.00023272,2]
[313659370,1707550245044,-178.4,0.00023272,2]
[313659371,1707550245054,-1628.71,0.00023272,2]
[313659372,1707550245067,-500.0,0.00023272,2]
[313659373,1707550245077,-797.39,0.00023272,2]
[313659374,1707550245086,-506.08824678,0.00023272,2]
[313659375,1707550245095,-500.0,0.00023272,2]
[313659376,1707550245110,-500.0,0.00023272,2]
[313659377,1707550245119,-905.39,0.00023272,2]
[313659378,1707550245129,-500.0,0.00023272,2]
[313659379,1707550245139,-1369.16,0.00023272,2]
[313659380,1707550245148,-600.98,0.00023272,2]
[313659381,1707550245158,-500.0,0.00023272,2]
[313659382,1707550245167,-732.41,0.00023272,2]
[313659383,1707550245177,-500.0,0.00023272,2]
[313659384,1707550245186,-500.0,0.00023272,2]
[313659385,1707550245195,-454.13906763,0.00023272,2]
[313659386,1707550245205,-500.0,0.00023272,2]
[313659387,1707550245215,-519.21,0.00023272,2]
[313659388,1707550245225,-3358.02,0.00023272,2]
[313659389,1707550245235,-500.0,0.00023272,2]
[313659390,1707550245244,-2687.95,0.00023272,2]
[313659391,1707550245254,-500.0,0.00023272,2]
[313659392,1707550245263,-500.0,0.00023272,2]
[313659393,1707550245273,-5968.38,0.00023272,2]
[313659394,1707550245282,-500.0,0.00023272,2]
[313659395,1707550245291,-500.0,0.00023272,2]
[313659396,1707550245300,-500.0,0.00023272,2]
[313659397,1707550245310,-4766.45,0.00023272,2]
[313659398,1707550245320,-500.0,0.00023272,2]
[313659399,1707550245329,-917.38,0.00023272,2]
[313659400,1707550245340,-21142.71,0.00023272,2]
[313659401,1707550245350,-7044.22,0.00023272,2]
[313659402,1707550245360,-500.0,0.00023272,2]
[313659403,1707550245369,-500.0,0.00023272,2]
[313659404,1707550245378,-2165.71,0.00023272,2]
[313659405,1707550245387,-500.0,0.00023272,2]
[313659406,1707550245397,-500.0,0.00023272,2]
[313659407,1707550245407,-4932.86,0.00023272,2]
[313659408,1707550245416,-773.79,0.00023272,2]
[313659409,1707550245425,-500.0,0.00023272,2]
[313659410,1707550245435,-545.16,0.00023272,2]
[313659411,1707550245444,-500.0,0.00023272,2]
[313659412,1707550245453,-500.0,0.00023272,2]
[313659413,1707550245462,-1857.65,0.00023272,2]
[313659414,1707550245471,-500.0,0.00023272,2]
[313659415,1707550245480,-500.0,0.00023272,2]
[313659416,1707550245490,-3525.48,0.00023272,2]
[313659417,1707550245499,-500.0,0.00023272,2]
[313659418,1707550245508,-7549.37,0.00023272,2]
[313659419,1707550245519,-500.0,0.00023272,2]
[313659420,1707550245528,-556.3,0.00023272,2]
[313659421,1707550245537,-696.34,0.00023272,2]
[313659422,1707550245546,-500.0,0.00023272,2]
[313659423,1707550245555,-500.0,0.00023272,2]
[313659424,1707550245563,-500.0,0.00023272,2]
[313659425,1707550245572,-500.0,0.00023272,2]
[313659426,1707550245583,-602.17,0.00023272,2]
[313659427,1707550245593,-500.0,0.00023272,2]
[313659428,1707550245604,-7994.11,0.00023272,2]
[313659429,1707550245613,-501.83,0.00023272,2]
[313659430,1707550245622,-3042.89,0.00023272,2]
[313659431,1707550245631,-500.0,0.00023272,2]
[313659432,1707550245640,-908.93,0.00023272,2]
[313659433,1707550245649,-519.14,0.00023272,2]
[313659434,1707550245658,-1521.59,0.00023272,2]
[313659435,1707550245667,-1277.54,0.00023272,2]
[313659436,1707550245676,-500.0,0.00023272,2]
[313659437,1707550245686,-500.0,0.00023272,2]
[313659438,1707550245696,-528.51033468,0.00023272,2]
[313659439,1707550245705,-1074.11,0.00023272,2]
[313659440,1707550245715,-3035.8,0.00023272,2]
[313659441,1707550245724,-500.0,0.00023272,2]
[313659442,1707550245734,-500.0,0.00023272,2]
[313659443,1707550245744,-500.0,0.00023272,2]
[313659444,1707550245753,-1930.43,0.00023272,2]
[313659445,1707550245763,-500.0,0.00023272,2]
[313659446,1707550245773,-500.0,0.00023272,2]
[313659447,1707550245782,-500.0,0.00023272,2]
[313659448,1707550245791,-500.0,0.00023272,2]
[313659449,1707550245800,-500.0,0.00023272,2]
[313659450,1707550245810,-548.43,0.00023272,2]
[313659451,1707550245819,-500.0,0.00023272,2]
[313659452,1707550245828,-500.0,0.00023272,2]
[313659453,1707550245837,-500.0,0.00023272,2]
[313659454,1707550245846,-556.85,0.00023272,2]
[313659455,1707550245856,-1145.35,0.00023272,2]
[313659456,1707550245865,-996.7,0.00023272,2]
[313659457,1707550245874,-500.0,0.00023272,2]
[313659458,1707550245883,-500.0,0.00023272,2]
[313659459,1707550245892,-3454.53,0.00023272,2]
[313659460,1707550245901,-1035.04,0.00023272,2]
[313659462,1707550245911,-500.0,0.00023272,2]
[313659463,1707550245920,-500.0,0.00023272,2]
[313659465,1707550245929,-500.0,0.00023272,2]